lending/lending_fUSD_20250418
["ID","MTS","AMOUNT","RATE_DAILY","PERIOD"]
[358345329,1744966231976,-358.29660855,0.00054794,120]
[358345331,1744966231985,-500.0,0.00054794,120]
[358345333,1744966231995,-530.11462405,0.00054794,120]
[358345335,1744966232005,-399.20396543,0.00054794,120]
[358345337,1744966232019,-100.79603457,0.00054794,120]
[358345339,1744966232028,-500.0,0.00054794,120]
[358345342,1744966232036,-500.0,0.00054794,120]
[358345344,1744966232046,-526.50902204,0.00054794,120]
[358345347,1744966232055,-399.6626564,0.00054794,120]
[358345350,1744966232065,-528.31441154,0.00054794,120]
[358345353,1744966232074,-500.0,0.00054794,120]
[358345356,1744966232083,-500.0,0.00054794,120]
[358345359,1744966232092,-467.76435674,0.00054794,120]
[358345363,1744966232104,-61.36312276,0.00054794,120]
[358345365,1744966232113,-500.0,0.00054794,30]
[358345369,1744966232124,-500.0,0.00054794,120]
[358345372,1744966232134,-519.4000582,0.00054794,120]
[358345375,1744966232143,-508.97362957,0.00054794,120]
[358345378,1744966232152,-500.0,0.00054794,120]
[358345381,1744966232161,-328.863665,0.00054794,120]
[358345384,1744966232173,-171.136335,0.00054794,120]
[358345386,1744966232183,-508.97574145,0.00054794,120]
[358345388,1744966232193,-39.08115278,0.00054794,120]
[358345390,1744966232204,-496.56598449,0.00054794,120]
[358345392,1744966232214,-511.04232415,0.00054794,120]
[358345394,1744966232223,-500.0,0.00054794,120]
[358345396,1744966232232,-193.44185528,0.00054794,120]
[358345398,1744966232244,-306.55814472,0.00054794,120]
[358345400,1744966232254,-500.0,0.00054794,120]
[358345402,1744966232263,-513.34284237,0.00054794,120]
[358345404,1744966232272,-242.82849985,0.00054794,120]
[358345406,1744966232282,-500.0,0.00054794,120]
[358345408,1744966232292,-252.5793069,0.00054794,120]
[358345410,1744966232301,-522.43886756,0.00054794,120]
[358345412,1744966232311,-509.38581779,0.00054794,120]
[358345414,1744966232321,-512.0900048,0.00054794,120]
[358345416,1744966232330,-513.50645314,0.00054794,120]
[358345418,1744966232340,-48.20236686,0.00054794,120]
[358345738,1744966237619,-467.45727874,0.00054794,120]
[358345739,1744966237628,-500.0,0.00054794,120]
[358345740,1744966237637,-500.0,0.00054794,120]
[358345741,1744966237646,-182.97676582,0.00054794,120]
[358345742,1744966237657,-361.13166887,0.00054794,120]
[358345743,1744966237666,-510.93839131,0.00054794,120]
[358345744,1744966237675,-543.03773652,0.00054794,120]
[358345745,1744966237684,-515.95827733,0.00054794,120]
[358345746,1744966237693,-502.61608829,0.00054794,120]
[358345747,1744966237701,-384.80761146,0.00054794,120]
[358345748,1744966237710,-65.79756752,0.00054794,120]
[358345749,1744966237721,-434.20243248,0.00054794,120]
[358345750,1744966237730,-500.0,0.00054794,120]
[358345751,1744966237738,-500.0,0.00054794,120]
[358345752,1744966237747,-500.0,0.00054794,120]
[358345753,1744966237756,-500.0,0.00054794,120]
[358345754,1744966237765,-526.73327561,0.00054794,120]
[358345755,1744966237773,-535.90696671,0.00054794,120]
[358345756,1744966237782,-500.0,0.00054794,120]
[358345757,1744966237790,-193.21954938,0.00054794,120]
[358345758,1744966237799,-500.0,0.00054794,120]
[358345759,1744966237808,-500.0,0.00054794,120]
[358345760,1744966237817,-406.91777582,0.00054794,120]
[358345761,1744966237828,-93.08222418,0.00054794,120]
[358345762,1744966237837,-179.22147972,0.00054794,120]
[358345763,1744966237846,-1319.76,0.00054794,2]
[358345764,1744966237855,-150.0,0.00054795,120]
[358345765,1744966237864,-203.13018845,0.00054795,120]
[358345766,1744966237873,-500.0,0.00054795,120]
[358345767,1744966237884,-150.0,0.00054795,120]
[358345768,1744966237894,-151.55797055,0.00054795,120]
[358345769,1744966237904,-251.00517436,0.00054795,60]
[358345770,1744966237913,-150.0,0.00054795,120]
[358345771,1744966237923,-0.13821585,0.00054795,120]
[358345772,1744966237934,-499.86178415,0.00054795,120]
[358345773,1744966237943,-92.28183081,0.00054795,2]
[358345774,1744966237958,-57.71816919,0.00054795,2]
[358345775,1744966237967,-205.76162976,0.00054795,120]
[358345776,1744966237974,-208.02746934,0.00054795,120]
[358345777,1744966237981,-198.92819271,0.00055,2]
[358345778,1744966237989,-51.07180729,0.00055,2]
[358345779,1744966237996,-534.49894533,0.00055342,120]
[358345780,1744966238004,-295.74498464,0.00055342,120]
[358345781,1744966238010,-134.91646134,0.00055342,120]
[358345782,1744966238026,-365.08353866,0.00055342,120]
[358345783,1744966238034,-186.34525653,0.00055342,120]
[358345784,1744966238044,-352.12900005,0.00055342,120]
[358345785,1744966238053,-85.09226344,0.00055342,120]
[358345786,1744966238063,-465.07773656,0.00055342,120]
[358345787,1744966238072,-31.92225344,0.00055342,120]
[358345788,1744966238082,-498.46137954,0.00055342,120]
[358345789,1744966238091,-500.0,0.00055342,120]
[358345790,1744966238099,-66.49262998,0.00055342,120]
[358345791,1744966238110,-433.50737002,0.00055342,120]
[358345792,1744966238119,-85.5709248,0.00055342,120]
[358345793,1744966238130,-290.811,0.00055342,120]
[358345794,1744966238141,-161.81784068,0.00055342,120]
[358345795,1744966238150,-500.0,0.00055342,120]
[358345796,1744966238160,-455.57092268,0.00055342,120]
[358345798,1744966238171,-44.42907732,0.00055342,120]
[358345800,1744966238180,-500.0,0.00055342,120]
[358345801,1744966238189,-500.0,0.00055342,120]
[358345803,1744966238199,-252.29181218,0.00055342,120]
[358345804,1744966238207,-500.0,0.00055342,120]
[358345806,1744966238217,-500.0,0.00055342,120]
[358345808,1744966238225,-584.34087685,0.00055342,120]
[358345809,1744966238234,-500.0,0.00055342,120]
[358345811,1744966238243,-500.0,0.00055342,120]
[358345813,1744966238253,-500.0,0.00055342,120]
[358345814,1744966238262,-539.49234965,0.00055342,120]
[358345816,1744966238272,-500.0,0.0005589,120]
[358345818,1744966238281,-313.14395657,0.0005589,120]
[358345819,1744966238291,-500.0,0.0005589,120]
[358345821,1744966238300,-500.0,0.0005589,120]
[358345823,1744966238309,-500.0,0.0005589,120]
[358345824,1744966238318,-500.0,0.0005589,120]
[358345826,1744966238327,-500.0,0.0005589,120]
[358345828,1744966238336,-449.89314155,0.0005589,120]
[358345830,1744966238345,-500.0,0.0005589,120]
[358345832,1744966238353,-500.0,0.0005589,120]
[358345833,1744966238363,-231.57063114,0.0005589,120]
[358345835,1744966238374,-268.42936886,0.0005589,120]
[358345837,1744966238383,-79.80068946,0.0005589,120]
[358345839,1744966238394,-182.48988984,0.0005589,120]
[358345840,1744966238403,-1000.0,0.00056314,120]
[358345842,1744966238412,-39.15726879,0.00056344,30]
[358345844,1744966238423,-247.46273121,0.00056344,30]
[358345846,1744966238431,-155.03757059,0.00056346,15]
[358345848,1744966238440,-161.79,0.0005639,120]
[358345849,1744966238449,-283.17556966,0.00056411,2]
[358345851,1744966238458,-500.0,0.00056438,120]
[358345853,1744966238468,-500.0,0.00056438,120]
[358345855,1744966238477,-500.0,0.00056438,120]
[358345856,1744966238486,-530.10733404,0.00056438,120]
[358345858,1744966238495,-500.0,0.00056438,120]
[358345860,1744966238504,-523.98360746,0.00056438,120]
[358345862,1744966238513,-158.3083933,0.00056438,120]
[358345863,1744966238522,-500.0,0.00056438,120]
[358345865,1744966238531,-500.0,0.00056438,120]
[358345867,1744966238540,-229.12,0.00056688,2]
[358345869,1744966238548,-449.82176153,0.00056927,15]
[358345870,1744966238560,-500.0,0.00056986,120]
[358345872,1744966238568,-500.0,0.00056986,120]
[358345874,1744966238577,-500.0,0.00056986,120]
[358345876,1744966238586,-393.46242194,0.00056986,120]
[358345878,1744966238595,-500.0,0.00056986,120]
[358345879,1744966238604,-500.0,0.00056986,120]
[358345881,1744966238613,-500.0,0.00056986,120]
[358345883,1744966238622,-708.89,0.00057434,112]
[358345885,1744966238631,-6869.8,0.00057467,2]
[358345886,1744966238640,-500.0,0.00057534,120]
[358345888,1744966238649,-500.0,0.00057534,120]
[358345890,1744966238658,-500.0,0.00057534,120]
[358345892,1744966238667,-426.40722515,0.00057534,120]
[358345893,1744966238676,-500.0,0.00057534,120]
[358345895,1744966238686,-200.80509175,0.00057534,120]
[358345897,1744966238695,-500.0,0.00057534,120]
[358345899,1744966238704,-500.0,0.00057534,120]
[358345900,1744966238713,-500.0,0.00057534,120]
[358345902,1744966238722,-500.0,0.00057534,120]
[358345904,1744966238732,-252.2984749,0.00057583,120]
[358345906,1744966238741,-216.84977483,0.00057598,2]
[358345908,1744966238750,-257.71209224,0.0005794,2]
[358345909,1744966238759,-7192.7617,0.00057982,2]
[358345911,1744966238768,-183.48,0.00057982,2]
[358345913,1744966238777,-2308.10385418,0.00057982,15]
[358345915,1744966238787,-200.0,0.00058009,2]
[358345916,1744966238795,-150.0,0.00058081,120]
[358345918,1744966238804,-500.0,0.00058082,120]
[358345920,1744966238813,-500.0,0.00058082,120]
[358345922,1744966238822,-500.0,0.00058082,120]
[358345923,1744966238831,-500.0,0.00058082,120]
[358345925,1744966238840,-500.0,0.00058082,120]
[358345926,1744966238849,-156.68,0.00058156,2]
[358345927,1744966238859,-167.08,0.00058493,2]
[358345928,1744966238868,-500.0,0.0005863,120]
[358345929,1744966238878,-500.0,0.0005863,120]
[358345930,1744966238890,-500.0,0.0005863,120]
[358345931,1744966238899,-500.0,0.0005863,120]
[358345932,1744966238909,-500.54978154,0.0005863,120]
[358345933,1744966238919,-4790.8305,0.00058729,2]
[358345934,1744966238930,-444.8252,0.00058729,2]
[358345935,1744966238939,-414.8,0.00058793,2]
[358345936,1744966238949,-23900.0,0.00058829,2]
[358345937,1744966238959,-229.12,0.00058952,2]
[358345938,1744966238969,-508.74136215,0.00058976,80]
[358345939,1744966238978,-6157.96671151,0.00058978,15]
[358345940,1744966238987,-35035.5635092,0.00059068,4]
[358345941,1744966238996,-500.0,0.00059077,120]
[358345942,1744966239005,-251.85178525,0.00059077,120]
[358345943,1744966239014,-162.13572328,0.00059077,120]
[358345944,1744966239023,-500.0,0.00059077,120]
[358345945,1744966239032,-510.61167684,0.00059077,120]
[358345946,1744966239041,-500.0,0.00059077,120]
[358345947,1744966239051,-500.0,0.00059077,120]
[358345948,1744966239059,-500.0,0.00059077,120]
[358345949,1744966239068,-500.0,0.00059077,120]
[358345950,1744966239077,-500.0,0.00059077,120]
[358345951,1744966239087,-66218.36094637,0.00059078,2]
[358345952,1744966239099,-18994.16840535,0.00059078,2]
[358345953,1744966239111,-901.47596624,0.00059078,2]
[358345954,1744966239125,-12311.70954479,0.00059078,2]
[358345955,1744966239135,-4677.82886025,0.00059078,2]
[358345956,1744966239146,-941.57868834,0.00059078,2]
[358345961,1744966239810,-1635.66201712,0.00059078,2]
[358345962,1744966239822,-42399.95256247,0.00059078,2]
[358345963,1744966239994,-9656.70974464,0.00059078,2]
[358345964,1744966240004,-2614.10488298,0.00059078,2]
[358345965,1744966240154,-495.68719811,0.00059078,2]
[358345966,1744966240165,-1610.88355995,0.00059078,2]
[358345967,1744966240176,-500.0,0.00059078,2]
[358345968,1744966240208,-2635.004524,0.00059078,2]
[358345969,1744966240219,-779.30458002,0.00059078,2]
[358345970,1744966240229,-917.65074819,0.00059078,2]
[358345971,1744966240263,-921.54312845,0.00059078,2]
[358345972,1744966240274,-9192.43820384,0.00059078,2]
[358345997,1744966244422,-22595.93643889,0.00059078,2]
[358345998,1744966244431,-41256.8719,0.00059078,2]
[358345999,1744966244440,-1751.77817546,0.00059168,4]
[358346000,1744966244449,-500.0,0.00059178,120]
[358346001,1744966244458,-500.0,0.00059178,120]
[358346002,1744966244467,-500.0,0.00059178,120]
[358346003,1744966244477,-500.0,0.00059178,120]
[358346004,1744966244486,-150.0,0.00059451,120]
[358346005,1744966244495,-1751.77817546,0.00059716,5]
[358346006,1744966244504,-500.0,0.00059726,120]
[358346007,1744966244513,-500.0,0.00059726,120]
[358346008,1744966244522,-500.0,0.00059726,120]
[358346009,1744966244531,-500.0,0.00059726,120]
[358346010,1744966244541,-500.0,0.0006,60]
[358346011,1744966244550,-500.0,0.0006,120]
[358346012,1744966244560,-500.0,0.0006,120]
[358346013,1744966244570,-500.0,0.0006,120]
[358346014,1744966244579,-330.86801094,0.0006,120]
[358346015,1744966244588,-479.89465498,0.0006,120]
[358346016,1744966244597,-1751.77817546,0.00060263,5]
[358346017,1744966244606,-500.0,0.00060273,120]
[358346018,1744966244615,-500.0,0.00060273,120]
[358346019,1744966244625,-500.0,0.00060273,120]
[358346020,1744966244635,-500.0,0.00060273,120]
[358346021,1744966244646,-262.88238468,0.00060274,120]
[358346022,1744966244656,-500.0,0.00060274,120]
[358346023,1744966244667,-150.0,0.00060274,120]
[358346024,1744966244677,-150.0,0.00060274,120]
[358346025,1744966244686,-500.0,0.00060274,120]
[358346026,1744966244696,-2308.10385414,0.00060539,15]
[358346027,1744966244705,-1751.77817546,0.00060811,5]
[358346028,1744966244715,-500.0,0.00060821,120]
[358346029,1744966244724,-500.0,0.00060821,120]
[358346030,1744966244733,-500.0,0.00060821,120]
[358346031,1744966244743,-500.0,0.00060821,120]
[358346032,1744966244752,-150.0,0.00060821,120]
[358346033,1744966244761,-229.12,0.00061216,2]
[358346034,1744966244770,-1751.77817546,0.00061349,5]
[358346035,1744966244780,-500.0,0.00061369,120]
[358346036,1744966244790,-500.0,0.00061369,120]
[358346037,1744966244799,-500.0,0.00061369,120]
[358346038,1744966244809,-500.0,0.00061369,120]
[358346039,1744966244818,-1751.77817546,0.00061414,5]
[358346040,1744966244827,-6157.96671146,0.00061424,15]
[358346041,1744966244836,-1751.77817546,0.00061907,5]
[358346042,1744966244846,-500.0,0.00061917,120]
[358346043,1744966244855,-500.0,0.00061917,120]
[358346044,1744966244864,-500.0,0.00061917,120]
[358346045,1744966244873,-500.0,0.00061917,120]
[358346046,1744966244886,-150.0,0.00062191,120]
[358346047,1744966244896,-1751.77817546,0.00062355,5]
[358346048,1744966244905,-5000.0,0.00062365,120]
[358346049,1744966244914,-500.0,0.00062465,120]
[358346050,1744966244924,-500.0,0.00062465,120]
[358346051,1744966244934,-500.0,0.00062465,120]
[358346052,1744966244944,-500.0,0.00062465,120]
[358346053,1744966244953,-161.79,0.00062614,120]
[358346054,1744966244965,-1751.77817546,0.00062637,5]
[358346055,1744966244975,-500.0,0.00063013,120]
[358346056,1744966244984,-500.0,0.00063013,120]
[358346057,1744966244994,-500.0,0.00063013,120]
[358346058,1744966245003,-177.93906595,0.00063013,120]
[358346059,1744966245012,-500.0,0.00063013,120]
[358346060,1744966245022,-633.72419141,0.00063013,120]
[358346061,1744966245032,-500.0,0.00063013,120]
[358346062,1744966245042,-176.89,0.00063026,120]
[358346063,1744966245052,-2308.10385414,0.00063096,15]
[358346064,1744966245062,-1000.0,0.00063353,120]
[358346065,1744966245071,-229.12,0.0006348,2]
[358346066,1744966245080,-500.0,0.00063561,120]
[358346067,1744966245090,-500.0,0.00063561,120]
[358346068,1744966245099,-500.0,0.00063561,120]
[358346069,1744966245109,-150.0,0.00063561,120]
[358346070,1744966245118,-1000.0,0.00063664,2]
[358346071,1744966245128,-1000.0,0.00063664,2]
[358346072,1744966245137,-1000.0,0.00063664,2]
[358346073,1744966245147,-1000.0,0.00063664,2]
[358346074,1744966245157,-1000.0,0.00063664,2]
[358346075,1744966245166,-1000.0,0.00063664,2]
[358346076,1744966245176,-1000.0,0.00063664,2]
[358346077,1744966245185,-1000.0,0.00063664,2]
[358346078,1744966245194,-1000.0,0.00063664,2]
[358346079,1744966245204,-1000.0,0.00063664,2]
[358346080,1744966245213,-1000.0,0.00063664,2]
[358346081,1744966245224,-1000.0,0.00063664,2]
[358346082,1744966245233,-1000.0,0.00063664,2]
[358346083,1744966245243,-1000.0,0.00063664,2]
[358346084,1744966245253,-1000.0,0.00063664,2]
[358346085,1744966245262,-1000.0,0.00063664,2]
[358346086,1744966245272,-1000.0,0.00063664,2]
[358346087,1744966245282,-1000.0,0.00063664,2]
[358346088,1744966245291,-606.61300277,0.00063664,2]
[358346089,1744966245302,-6157.96671146,0.00063871,15]
[358346090,1744966245311,-375.0,0.00064,120]
[358346091,1744966245321,-500.0,0.00064108,2]
[358346092,1744966245331,-500.0,0.00064108,120]
[358346093,1744966245341,-500.0,0.00064108,120]
[358346094,1744966245351,-162.86518175,0.00064109,120]
[358346095,1744966245360,-500.0,0.00064109,120]
[358346096,1744966245369,-500.0,0.00064109,120]
[358346097,1744966245379,-500.0,0.00064383,120]
[358346098,1744966245389,-375.0,0.00064384,120]
[358346099,1744966245398,-31140.3,0.00064384,120]
[358346100,1744966245408,-190.37,0.000646,7]
[358346102,1744966245418,-500.0,0.00064656,2]
[358346103,1744966245428,-445.0963017,0.00064656,120]
[358346104,1744966245438,-500.0,0.00064656,120]
[358346105,1744966245447,-505.41247894,0.00064657,120]
[358346106,1744966245457,-500.0,0.00064657,120]
[358346107,1744966245467,-375.0,0.00064658,120]
[358346108,1744966245478,-1733.9874554,0.00064755,4]
[358346109,1744966245487,-5291.7861498,0.00064755,4]
[358346110,1744966245496,-2990.8527212,0.00064755,4]
[358346111,1744966245506,-9200.7486579,0.00064799,4]
[358346112,1744966245515,-634.81303394,0.00064843,4]
[358346113,1744966245525,-72830.0722862,0.00064843,4]
[358346114,1744966245535,-150.0,0.0006493,120]
[358346115,1744966245544,-500.0,0.00064931,120]
[358346116,1744966245554,-375.0,0.00064932,120]
[358346117,1744966245563,-899.2,0.00065,120]
[358346118,1744966245573,-1000.0,0.00065,120]
[358346119,1744966245583,-500.0,0.00065204,2]
[358346120,1744966245592,-500.0,0.00065204,120]
[358346121,1744966245602,-500.0,0.00065205,120]
[358346122,1744966245612,-375.0,0.00065205,120]
[358346123,1744966245623,-500.0,0.00065479,120]
[358346124,1744966245632,-2308.10385414,0.00065653,15]
[358346125,1744966245641,-22570.3333,0.00065703,2]
[358346126,1744966245651,-229.12,0.00065744,2]
[358346127,1744966245660,-500.0,0.00065752,2]
[358346128,1744966245670,-500.0,0.00065752,120]
[358346129,1744966245679,-500.0,0.00065753,120]
[358346130,1744966245688,-451.01935821,0.00065754,120]
[358346131,1744966245698,-279.55938051,0.00065754,120]
[358346132,1744966245707,-256.82902421,0.00065754,120]
[358346133,1744966245717,-500.0,0.00065754,120]
[358346134,1744966245727,-500.0,0.00065802,120]
[358346135,1744966245737,-4669.0,0.00065803,25]
[358346136,1744966245747,-300.0,0.000659,24]
[358346137,1744966245757,-500.0,0.00066027,120]
[358346138,1744966245766,-500.0,0.000663,2]
[358346139,1744966245775,-500.0,0.000663,120]
[358346140,1744966245785,-150.0,0.000663,120]
[358346141,1744966245795,-500.0,0.00066301,120]
[358346142,1744966245805,-6157.96671146,0.00066317,15]
[358346143,1744966245815,-500.0,0.00066575,120]
[358346144,1744966245825,-500.0,0.00066848,2]
[358346145,1744966245834,-404.26518887,0.00066848,120]
[358346146,1744966245844,-515.63325894,0.00066849,120]
[358346147,1744966245853,-539.1527014,0.00067123,120]
[358346148,1744966245863,-375.0,0.00067315,120]
[358346149,1744966245872,-500.0,0.00067396,2]
[358346150,1744966245885,-150.0,0.0006767,120]
[358346151,1744966245894,-156.68,0.00067754,2]
[358346152,1744966245903,-500.0,0.00067944,2]
[358346153,1744966245912,-229.12,0.00068008,2]
[358346154,1744966245923,-2308.10385414,0.0006821,15]
[358346155,1744966245932,-250.0,0.00068444,2]
[358346156,1744966245941,-500.0,0.00068492,2]
[358346157,1744966245951,-500.0,0.00068493,120]
[358346158,1744966245960,-500.0,0.00068493,120]
[358346159,1744966245969,-6157.96671146,0.00068763,15]
[358346160,1744966245978,-161.79,0.00068838,120]
[358346161,1744966245988,-3687.48304251,0.0006888,120]
[358346162,1744966245997,-500.0,0.0006904,2]
[358346163,1744966246006,-150.0,0.0006904,120]
[358346164,1744966246015,-150.0,0.00069138,15]
[358346165,1744966246024,-242.86111505,0.00069588,2]
[358346166,1744966246033,-152.400263,0.00069695,120]
[358346167,1744966246042,-151.0,0.00069695,120]
[358346168,1744966246053,-151.56608142,0.000699,51]
[358346169,1744966246063,-600.0,0.000699,25]
[358346170,1744966246073,-345.60296871,0.000699,120]
[358346171,1744966246083,-500.0,0.00069919,120]
[358346172,1744966246092,-8898.0,0.00069973,120]
[358346173,1744966246102,-303.0,0.00069973,120]
[358346174,1744966246112,-500.0,0.00069999,90]
[358346175,1744966246122,-300.0,0.00069999,60]
[358346176,1744966246131,-500.0,0.00069999,90]
[358346177,1744966246140,-244999.999999,0.0007,120]
[358346178,1744966246150,-243.147216,0.0007,120]
[358346179,1744966246159,-151.0,0.0007,120]
[358346181,1744966246168,-151.0,0.0007,120]
[358346183,1744966246177,-154.537136,0.0007,120]
[358346185,1744966246186,-151.0,0.0007,120]
[358346187,1744966246196,-151.0,0.0007,120]
[358346189,1744966246205,-151.0,0.0007,120]
[358346191,1744966246215,-151.0,0.0007,120]
[358346194,1744966246224,-151.0,0.0007,120]
[358346196,1744966246233,-154.739915,0.0007,120]
[358346198,1744966246243,-151.739442,0.0007,120]
[358346200,1744966246253,-151.0,0.0007,30]
[358346202,1744966246262,-151.0,0.0007,120]
[358346204,1744966246271,-151.0,0.0007,120]
[358346206,1744966246280,-151.0,0.0007,120]
[358346208,1744966246290,-246.324413,0.0007,110]
[358346210,1744966246299,-157.391749,0.0007,120]
[358346212,1744966246309,-157.391749,0.0007,120]
[358346214,1744966246318,-151.0,0.0007,120]
[358346216,1744966246327,-151.0,0.0007,120]
[358346218,1744966246336,-151.0,0.0007,120]
[358346220,1744966246346,-151.0,0.0007,120]
[358346222,1744966246356,-151.0,0.0007,120]
[358346224,1744966246369,-151.0,0.0007,120]
[358346226,1744966246379,-151.0,0.0007,120]
[358346228,1744966246388,-151.0,0.0007,120]
[358346230,1744966246398,-152.28317,0.0007,120]
[358346232,1744966246407,-297.422328,0.0007,120]
[358346234,1744966246416,-297.422328,0.0007,120]
[358346236,1744966246426,-202.183311,0.0007,120]
[358346237,1744966246435,-151.0,0.0007,120]
[358346239,1744966246444,-151.0,0.0007,120]
[358346241,1744966246454,-151.0,0.0007,120]
[358346243,1744966246463,-151.0,0.0007,120]
[358346245,1744966246472,-151.0,0.0007,120]
[358346247,1744966246482,-155.97365,0.0007,120]
[358346248,1744966246491,-100000.0,0.0007,10]
[358346249,1744966246500,-2748.98837663,0.0007015,2]
[358346250,1744966246510,-238.92,0.0007027,120]
[358346251,1744966246519,-229.12,0.00070271,2]
[358346252,1744966246529,-1000.0,0.00070393,120]
[358346253,1744966246538,-150.0,0.0007041,120]
[358346254,1744966246547,-708.891,0.00070576,120]
[358346255,1744966246556,-375.0,0.00070681,120]
[358346256,1744966246565,-375.0,0.00070681,120]
[358346257,1744966246575,-2308.10385414,0.00070767,15]
[358346258,1744966246584,-176.89,0.00070905,120]
[358346259,1744966246593,-6157.96671146,0.0007121,15]
[358346260,1744966246602,-1530.42846747,0.00071232,120]
[358346261,1744966246612,-500.0,0.00071233,120]
[358346262,1744966246622,-150.0,0.0007178,120]
[358346263,1744966246631,-273.50908769,0.00071878,15]
[358346264,1744966246640,-229.12,0.00072535,2]
[358346265,1744966246650,-1783.49,0.00073,60]
[358346266,1744966246659,-203.5726776,0.00073003,55]
[358346267,1744966246668,-200.7252664,0.0007315,120]
[358346268,1744966246678,-345.60296869,0.00073233,120]
[358346269,1744966246687,-2308.10385414,0.00073324,15]
[358346270,1744966246697,-687.316009,0.000735,120]
[358346271,1744966246706,-151.56608142,0.000735,56]
[358346272,1744966246715,-375.0,0.00073508,120]
[358346273,1744966246724,-6157.96671146,0.00073656,15]
[358346274,1744966246733,-999.0,0.00073838,120]
[358346275,1744966246743,-500.0,0.00073972,120]
[358346276,1744966246752,-500.0,0.00073972,120]
[358346277,1744966246761,-375.0,0.00074047,120]
[358346278,1744966246770,-153.19,0.000745,72]
[358346279,1744966246780,-153.19,0.000745,72]
[358346280,1744966246789,-153.19,0.000745,72]
[358346281,1744966246798,-153.19,0.000745,72]
[358346282,1744966246810,-153.19,0.000745,72]
[358346283,1744966246819,-153.19,0.000745,72]
[358346284,1744966246829,-153.19,0.000745,72]
[358346285,1744966246839,-153.19,0.000745,72]
[358346286,1744966246848,-153.19,0.000745,72]
[358346287,1744966246858,-153.19,0.000745,72]
[358346288,1744966246868,-153.19,0.000745,72]
[358346289,1744966246878,-153.226819,0.0007457,120]
[358346290,1744966246890,-229.12,0.00074799,2]
[358346291,1744966246899,-1534.45934165,0.000749,120]
[358346292,1744966246908,-161.79,0.00075063,120]
[358346293,1744966246917,-600.0,0.00075063,120]
[358346294,1744966246927,-1783.49,0.000751,60]
[358346295,1744966246937,-2000.0,0.00075219,4]
[358346296,1744966246946,-151.0,0.00075533,120]
[358346297,1744966246956,-151.0,0.00075533,120]
[358346298,1744966246966,-154.716897,0.00075533,120]
[358346299,1744966246975,-151.0,0.00075533,120]
[358346300,1744966246987,-151.0,0.00075683,120]
[358346301,1744966246996,-198.266174,0.00075683,120]
[358346302,1744966247006,-172.29587,0.00075683,120]
[358346303,1744966247015,-2308.10385414,0.00075881,15]
[358346304,1744966247025,-1000.0,0.00076,120]
[358346305,1744966247034,-508.74136213,0.00076075,80]
[358346306,1744966247044,-6157.96671146,0.00076102,15]
[358346307,1744966247183,-375.0,0.00076335,120]
[358346308,1744966247193,-345.60296869,0.00076567,120]
[358346309,1744966247202,-238.92,0.00076658,120]
[358346310,1744966247211,-153.16463322,0.00076702,7]
[358346311,1744966247220,-334.4938371,0.00076712,120]
[358346312,1744966247229,-242.92387036,0.00076712,120]
[358346313,1744966247239,-500.0,0.00076712,120]
[358346314,1744966247248,-500.0,0.00076712,120]
[358346315,1744966247258,-500.0,0.00076712,120]
[358346316,1744966247268,-500.0,0.00076712,120]
[358346317,1744966247277,-500.0,0.00076712,120]